[Event "Romanian Team Blitz Open 2022"]
[Site "Sebes"]
[Date "2022.12.04"]
[Round "6.19"]
[White "Butolo, Alexandru-Mircea"]
[Black "Stoleriu, George"]
[Result "0-1"]
[ECO "A45"]
[WhiteElo "2043"]
[BlackElo "2389"]
[Annotator "TA"]
[PlyCount "92"]
[EventDate "2022.12.04"]
[EventType "blitz"]
[EventCountry "ROU"]
[SourceTitle "playchess.com"]
[Source "ChessBase"]
[SourceQuality "1"]
[TimeControl "180+2"]

{[%evp 9,92,7,16,-6,0,-12,-5,-11,0,-13,0,-26,-14,-36,-33,-96,-94,-80,-68,-43,-30,-33,-39,-29,-19,-100,-84,-196,-147,-221,-221,-204,-205,-221,-226,-235,-238,-234,-237,-233,-235,-260,-144,-149,-150,-160,-133,-199,-138,-185,-185,-304,-308,-496,-482,-469,-333,-320,-208,-206,-164,-164,-158,-157,-147,-147,-129,-198,-200,-215,-197,-230,-244,-231,-234,-234,-145,-145,-140,-502,-502,-479,-460,-29998,-29999]} 1. d4 {[%emt 0:00:02]} Nf6 {[%emt 0:00:01]} 2. Bf4 {[%emt 0:00:01]} b6 {[%emt 0:00:02]} 3. Nc3 {[%emt 0:00:02]} Bb7 {[%emt 0:00:01]} 4. e3 {[%emt 0:00:09]} g6 {[%emt 0:00:02]} 5. Nf3 {[%emt 0:00:05]} Bg7 {[%emt 0:00:00]} 6. Be2 {[%emt 0:00:08] A45: Trompowsky Attack.} O-O {[%emt 0:00:02]} 7. O-O {[%emt 0:00:01]} d6 8. h3 {[%emt 0:02:50] The position is equal.} Nbd7 {[%emt 0:00:03][%cal Bb8d7,Bd7e5,Be5c4][%mdl 32]} 9. Bh2 {[%emt 0:00:00]} Re8 {[%emt 0:00:01] [#]} 10. Nd2 $146 {[%emt 0:00:00]} ({Predecessor:} 10. a4 a5 11. Re1 e5 12. d5 Nc5 13. Bb5 Nfd7 14. e4 Rf8 15. Bxd7 Qxd7 16. Nb5 {0-1 (54) Levitsky,A (2317)-Babazada,K (2431) Chess.com INT 2022}) 10... e5 {[%emt 0:00:03]} (10... a6 {simplifies} 11. Bf3 d5 12. e4 dxe4 13. Ndxe4 Nxe4 14. Nxe4 e5) 11. dxe5 {[%emt 0:00:00]} Nxe5 {[%emt 0:00:10]} 12. Nc4 {[%emt 0:00:00]} (12. Nf3 $1 $15) 12... Nxc4 $1 $17 {[%emt 0:00:07]} 13. Bxc4 {[%emt 0:00:00]} Qd7 {[%emt 0:00:01]} 14. Bb5 {[%emt 0:00:00] Prevents Qc6.} Bc6 {[%emt 0:00:02]} 15. Bxc6 {[%emt 0:00:00]} Qxc6 {[%emt 0:00:02]} 16. Qd3 {[%emt 0:00:00]} Nd7 {[%emt 0:00:21] Black wants to play ...Bxc3.} 17. Rad1 {[%emt 0:00:00]} (17. Qb5 $11 {remains equal.} Nb8 18. Qxc6 Nxc6 19. Nd5) 17... Bxc3 {[%emt 0:00:04]} 18. bxc3 {[%emt 0:00:00]} (18. Qxc3 $17 {only move.} Qxc3 19. bxc3) 18... Nc5 {[%emt 0:00:01]} (18... Re4 $19 19. Qd5 Qxd5 20. Rxd5 Rc4) 19. Qd4 {[%emt 0:00:00] [#]} (19. Qd5 $17 {was called for.} Qa4 20. Bf4) 19... Re4 $1 $19 {[%emt 0:00:05]} 20. Qf6 {[%emt 0:00:00]} Re6 {[%emt 0:00:02]} 21. Qd4 {[%emt 0:00:00] [#]} Rae8 $1 {[%emt 0:00:12]} 22. Bf4 {[%emt 0:00:00]} Re4 {[%emt 0:00:03] Prevents f3.} 23. Qf6 {[%emt 0:00:00]} Nd7 {[%emt 0:00:12]} 24. Qh4 {[%emt 0:00:00]} Qxc3 {[%emt 0:00:02]} 25. f3 {[%emt 0:00:00]} R4e6 {[%emt 0:00:09]} ({Not} 25... Qxe3+ $2 26. Bxe3 Rxh4 27. Rd4 $19) (25... Ra4 $19 26. a3 Qxa3) 26. Qf2 $17 {[%emt 0:00:00]} f5 {[%emt 0:00:11]} 27. Rd3 {[%emt 0:00:14]} Qc5 {[%emt 0:00:03]} 28. Kh1 {[%emt 0:00:09]} (28. Qd2 $17) 28... Nf6 {[%emt 0:00:01]} (28... Ne5 $19 29. Rb3 Nc4) 29. Qd2 {[%emt 0:00:05]} (29. Bh6 $17) 29... Nh5 $19 {[%emt 0:00:05]} 30. Rd5 {[%emt 0:00:01]} (30. Rc3 $142 Qb5 31. Rd1 Nxf4 32. exf4) 30... Qc4 {[%emt 0:00:05][%csl LRa2,LRf1]} 31. Rd1 {[%emt 0:00:07]} (31. Rd3) 31... Nxf4 {[%emt 0:00:04]} (31... Qxa2 $2 {is the wrong capture.} 32. Bh6 $19) 32. Rd4 {[%emt 0:00:03]} Qe2 {[%emt 0:00:07]} 33. exf4 {[%emt 0:00:03]} Qb5 {[%emt 0:00:26]} 34. Qc3 {[%emt 0:00:01]} Qd7 {[%emt 0:00:12]} 35. Kh2 {[%emt 0:00:02]} Re3 {[%emt 0:00:05]} 36. R1d3 {[%emt 0:00:01]} Rxd3 {[%emt 0:00:08]} 37. Rxd3 $17 {[%emt 0:00:05][%mdl 4096] Endgame KQR-KQR} Re7 {[%emt 0:00:21]} 38. Qc4+ {[%emt 0:00:01]} (38. Re3 $17) 38... Qe6 $19 {[%emt 0:00:02]} 39. Qa6 {[%emt 0:00:02]} Kg7 {[%emt 0:00:11]} 40. Qxa7 {[%emt 0:00:02]} Qc4 {[%emt 0:00:01][%csl LRc2,LRf4] Prevents Rc3.} 41. Qa3 {[%emt 0:00:02]} Qxf4+ {[%emt 0:00:01]} 42. Kg1 {[%emt 0:00:02]} Re1+ {[%emt 0:00:11]} 43. Kf2 {[%emt 0:00:01]} Qe5 $36 {[%emt 0:00:00][%mdl 2048] Black is on the roll. Black has more active pieces.} 44. Qb4 $2 {[%emt 0:00:03][%mdl 8192]} (44. Qc3 $17 {was the crucial defense.} Re2+ 45. Kf1) 44... Re2+ {[%emt 0:00:04]} 45. Kf1 {[%emt 0:00:01]} Rxc2 {[%emt 0:00:03] ( -> ...Qe2+)} 46. f4 {[%emt 0:00:00]} (46. Qe1 $19 Qxe1+ 47. Kxe1) 46... Qe2+ {[%emt 0:00:01] Weighted Error Value: White=0.56/Black=0.22 (precise)} 0-1

[Event "Romanian Team Blitz Open 2022"]
[Site "Sebes"]
[Date "2022.12.04"]
[Round "6.20"]
[White "Zubcu, Vlad-George"]
[Black "Prelipcean, Eric-Matei"]
[Result "1-0"]
[ECO "A45"]
[WhiteElo "2135"]
[BlackElo "1909"]
[Annotator "TA"]
[PlyCount "117"]
[EventDate "2022.12.04"]
[EventType "blitz"]
[EventCountry "ROU"]
[SourceTitle "playchess.com"]
[Source "ChessBase"]
[SourceQuality "1"]
[TimeControl "180+2"]

{[%evp 10,117,-38,-33,5,13,8,12,128,143,185,200,247,216,274,276,277,284,268,249,270,263,242,258,260,239,239,165,198,140,402,414,414,314,387,233,203,192,353,92,89,99,98,41,54,45,35,40,111,62,71,81,133,129,137,85,83,87,127,64,77,39,42,35,212,34,70,47,452,385,343,358,332,157,166,68,64,0,70,70,74,59,59,64,79,23,18,0,0,0,32,30,29,28,93,88,515,515,498,498,529,527,648,660,1248,1080,1138,867,5808,5704]} 1. d4 {[%emt 0:00:01]} Nf6 {[%emt 0:00:01]} 2. Bg5 {[%emt 0:00:01]} Ne4 {[%emt 0:00:01]} 3. Bf4 {[%emt 0:00:00]} d5 {[%emt 0:00:01]} 4. f3 {[%emt 0:00:01]} Nf6 {[%emt 0:00:00]} 5. e4 {[%emt 0:00:00]} dxe4 {[%emt 0:03:09]} 6. Nc3 e6 {[%emt 0:00:00] A45: Trompowsky Attack.} 7. fxe4 {[%emt 0:00:02][%cal Bf3e4,Be4e5,Be5f6][%mdl 32]} Bb4 {[%emt 0:00:00]} 8. Bd3 {[%emt 0:00:05] [#]} Bxc3+ $146 {[%emt 0:00:00]} (8... c5 $1 $11 {keeps the balance.}) ({Predecessor:} 8... c5 9. a3 Bxc3+ 10. bxc3 Nc6 11. Nf3 Qa5 12. O-O c4 13. Bxc4 Nxe4 14. Bd3 Nxc3 {1-0 (28) Percivaldi,M (2393)-Glimbrant,T (2268) Stockholm 2019}) 9. bxc3 $16 {[%emt 0:00:01]} Nc6 {[%emt 0:00:00][%cal Oe6e5]} 10. Nf3 {[%emt 0:00:08] Inhibits e5.} O-O {[%emt 0:00:00]} 11. O-O {[%emt 0:00:10]} Nd7 {[%emt 0:00:00]} 12. e5 {[%emt 0:00:15]} f5 {[%emt 0:00:00]} 13. exf6 $1 {[%emt 0:00:02]} Nxf6 {[%emt 0:00:00]} 14. Qd2 {[%emt 0:00:20]} Nd5 {[%emt 0:00:00]} 15. Bg3 {[%emt 0:00:10]} Nce7 {[%emt 0:00:00]} 16. Bh4 {[%emt 0:00:35] A strong pair of Bishops.} Qe8 {[%emt 0:00:00]} 17. Ne5 {[%emt 0:00:12]} Nf5 {[%emt 0:00:00]} 18. Bf2 {[%emt 0:00:04]} Bd7 {[%emt 0:00:00]} 19. Rae1 {[%emt 0:00:09]} (19. g4 $18 Nd6 20. Bg3) 19... Qe7 $2 {[%emt 0:00:00][%mdl 8192]} (19... b5 $16 20. g4 Nd6) 20. c4 $18 {[%emt 0:00:18]} Nb6 {[%emt 0:00:00]} 21. c3 {[%emt 0:00:02]} Rae8 {[%emt 0:00:00]} 22. Qc2 {[%emt 0:00:06]} Ba4 {[%emt 0:00:00]} 23. Qb1 {[%emt 0:00:04] Strongly threatening g4.} Qg5 {[%emt 0:00:00] [#]} (23... g6 {might work better.} 24. c5 Nd7 25. Qxb7 Nxe5 26. Rxe5 Qd7) 24. Qc1 $2 {[%emt 0:00:12]} (24. Be3 $1 $18 {[%mdl 512] and White stays clearly on top.} Qh4 25. Bd2) 24... Qxc1 $16 {[%emt 0:00:00]} 25. Rxc1 {[%emt 0:00:00]} Nd7 {[%emt 0:00:00]} 26. Nf3 {[%emt 0:00:12]} (26. Rfe1 $16) 26... Bc6 $14 {[%emt 0:00:00]} 27. Rfe1 {[%emt 0:00:04][%cal Od4d5]} Bxf3 {[%emt 0:00:09]} 28. gxf3 {[%emt 0:00:01]} Nd6 {[%emt 0:00:09]} (28... b6 $14) 29. Kg2 {[%emt 0:00:02]} (29. c5 $16 Nf5 30. d5) 29... b6 {[%emt 0:00:14]} 30. c5 {[%emt 0:00:04]} bxc5 (30... Nf5 $142) 31. dxc5 $16 {[%emt 0:00:01]} Nf5 {[%emt 0:00:03]} 32. Bb5 {[%emt 0:00:07]} (32. Rb1 $142 $1) 32... Re7 {[%emt 0:00:09]} 33. Bc4 $36 {[%emt 0:00:09][%mdl 2048] White is really pushing.} Rf6 {[%emt 0:00:03]} 34. Rcd1 {[%emt 0:00:08]} ({Better is} 34. Rb1 $1 $16) 34... Nf8 $14 {[%emt 0:00:03]} 35. Bd4 {[%emt 0:00:00]} Nxd4 {[%emt 0:00:01]} 36. cxd4 {[%emt 0:00:06][%cal Bc3d4,Bd4d5,Bd5e6][%mdl 32]} Ref7 $2 {[%emt 0:00:03]} (36... g5 $14) 37. Re3 $2 {[%emt 0:00:04]} (37. d5 $1 $18 {[%cal Rd5e6]}) 37... g5 {[%emt 0:00:06]} 38. d5 {[%emt 0:00:22][%cal Rd5e6] White has more active pieces.} g4 $2 {[%mdl 8192]} (38... Kg7 $1 $14) 39. dxe6 {[%emt 0:00:00] Threatens to win with e7.} gxf3+ {[%emt 0:00:04]} 40. Kf2 {[%emt 0:00:00] White wants to mate with e7.} Re7 {[%emt 0:00:01] [#]} 41. Rg1+ {[%emt 0:00:00]} ({Not} 41. Rxf3 Rxf3+ 42. Kxf3 Nxe6 $14) (41. Rd7 $1 $18 {[%mdl 512] is the precise move to win.} Ng6 42. Rxc7 $3 {[%mdl 512]} (42. Rxf3 Kg7 $16)) 41... Kh8 $16 {[%emt 0:00:00]} 42. Rge1 {[%emt 0:00:00]} ({Much less strong is} 42. Rxf3 $6 Rxf3+ 43. Kxf3 Nxe6 $14) ({White should play} 42. c6 $18) 42... Kg7 $14 {[%emt 0:00:02]} 43. Rxf3 {[%emt 0:00:00]} ({White should try} 43. c6 $14) 43... Rxf3+ {[%emt 0:00:02]} (43... Nxe6 $11 44. Rg1+ Rg6) 44. Kxf3 {[%emt 0:00:00][%mdl 4096] Endgame KRB-KRN} Kf6 {[%emt 0:00:00][%cal Rf8e6]} 45. Ke4 {[%emt 0:00:06] And now Rf1+ would win.} Nxe6 {[%emt 0:00:01]} 46. Rf1+ {[%emt 0:00:02]} Kg7 {[%emt 0:00:01] [#]} 47. Kd5 {[%emt 0:00:01]} (47. Bxe6 $1 $16 {Hoping for Ke5.} Rxe6+ 48. Kd5) 47... Nd8 $11 {[%emt 0:00:03]} 48. c6 {[%emt 0:00:05]} Re6 {[%emt 0:00:02]} 49. Rg1+ {[%emt 0:00:02]} Kh8 {[%emt 0:00:01][%cal Oh7h6]} 50. Kd4 {[%emt 0:00:03]} Rd6+ {[%emt 0:00:01]} 51. Kc3 {[%emt 0:00:02][%csl Gc4][%cal Rg1g8]} Ne6 {[%emt 0:00:01]} (51... h6 $11 {remains equal.}) 52. Re1 $16 {[%emt 0:00:04]} Nf8 {[%emt 0:00:02][%mdl 8192]} (52... Nd8 $16) 53. Re8 $18 {[%emt 0:00:01] White is clearly winning.} Kg7 {[%emt 0:00:01]} 54. Re7+ {[%emt 0:00:00]} Kg6 {[%emt 0:00:01]} 55. Rxc7 {[%emt 0:00:01]} h5 {[%emt 0:00:06]} 56. Kb4 {[%emt 0:00:02] Kc5 is the strong threat.} Kf6 {[%emt 0:00:01]} 57. Kb5 {[%emt 0:00:01] aiming for Rf7+.} Ne6 {[%emt 0:00:03]} 58. Bxe6 {[%emt 0:00:01]} Rxe6 {[%emt 0:00:01]} 59. Rxa7 {[%emt 0:00:01] Weighted Error Value: White=0.43/Black=0.63} 1-0

[Event "Romanian Team Blitz Open 2022"]
[Site "Sebes"]
[Date "2022.12.04"]
[Round "6.21"]
[White "Stanca, Adrian"]
[Black "Neacsu, Mircea"]
[Result "1-0"]
[ECO "A05"]
[WhiteElo "2182"]
[BlackElo "1901"]
[Annotator "TA"]
[PlyCount "62"]
[EventDate "2022.12.04"]
[EventType "blitz"]
[EventCountry "ROU"]
[SourceTitle "playchess.com"]
[Source "ChessBase"]
[SourceQuality "1"]
[TimeControl "180+2"]

{[%evp 10,62,15,0,27,22,16,8,8,18,58,65,62,41,58,33,37,6,70,62,58,35,43,36,92,97,93,106,218,226,262,249,331,231,228,37,35,-155,-20,-24,-44,-27,23,30,55,59,94,110,156,121,114,128,236,218,215]} 1. Nf3 {[%emt 0:00:02]} Nf6 {[%emt 0:00:01]} 2. g3 {[%emt 0:00:01]} g6 {[%emt 0:00:01]} 3. Bg2 {[%emt 0:00:00]} Bg7 {[%emt 0:00:01]} 4. O-O {[%emt 0:00:02]} O-O {[%emt 0:00:01]} 5. d3 {[%emt 0:00:01]} d6 {[%emt 0:00:01]} 6. Nbd2 {[%emt 0:00:01]} c6 {[%emt 0:00:03] A05: Réti Opening: 1 Nf3 Nf6.} 7. a4 {[%emt 0:00:03] [#]} a5 $146 {[%emt 0:00:02]} ({Predecessor:} 7... e5 8. a5 Na6 9. c3 Nh5 10. Ne1 Be6 11. e3 Qd7 12. Bf3 Nf6 13. b4 Nd5 14. Bxd5 Bxd5 {0-1 (42) Probst,J-Schwabedahl,F Schussenried 1992}) 8. d4 {[%emt 0:00:08]} Na6 {[%emt 0:00:10] The position is equal.} 9. e4 {[%emt 0:00:06]} Ng4 {[%emt 0:00:24]} 10. h3 {[%emt 0:00:11]} Nf6 {[%emt 0:00:06]} 11. c3 {[%emt 0:00:03]} Nd7 {[%emt 0:00:04]} 12. Re1 {[%emt 0:00:19]} e5 {[%emt 0:00:02]} 13. Nc4 {[%emt 0:00:09]} Qc7 {[%emt 0:00:48]} (13... exd4 $11 14. cxd4 (14. Nxd6 dxc3 15. bxc3 Bxc3 $11) 14... Nf6) 14. dxe5 {[%emt 0:00:03]} dxe5 {[%emt 0:00:08]} 15. Qd6 {[%emt 0:00:01]} Qxd6 {[%emt 0:00:31]} 16. Nxd6 {[%emt 0:00:02]} Nac5 {[%emt 0:00:06]} (16... Rd8 $14) 17. Bg5 $16 {[%emt 0:00:21] White is much more active. The black rooks are badly placed.} f6 {[%emt 0:00:13]} 18. Be3 {[%emt 0:00:01]} Ne6 {[%emt 0:00:11]} (18... Rd8 $16) 19. Red1 $18 {[%emt 0:00:11] Threatens to win with Nxc8.} Ndc5 {[%emt 0:00:05]} 20. Bf1 $1 {[%emt 0:00:07]} b6 {[%emt 0:00:16]} 21. Bc4 {[%emt 0:00:04]} Ba6 {[%emt 0:00:06] [#]} 22. Bxe6+ $2 {[%emt 0:00:47]} (22. Ba2 $1 $18 {aiming for b4.} Kh8 23. b4) 22... Nxe6 $14 {[%emt 0:00:04]} 23. Bxb6 $2 {[%emt 0:00:02] [#]} (23. Nd2 $14 {keeps the upper hand.}) 23... Be2 {[%emt 0:00:14]} (23... Rfb8 $1 $17 {[%cal Rb8b6]} 24. Be3 (24. Bxa5 $2 {too greedy.} Be2 $19) 24... Be2) 24. Nd2 $1 $11 {[%emt 0:00:08]} Bxd1 {[%emt 0:00:03]} 25. Rxd1 {[%emt 0:00:02]} Rab8 {[%emt 0:00:01]} ({Better is} 25... Rfb8 26. N2c4 Bf8) 26. N2c4 {[%emt 0:00:02]} Bh6 {[%emt 0:00:07][%cal Ob8b6]} 27. Bxa5 {[%emt 0:00:03]} Ra8 {[%emt 0:00:04]} 28. b4 {[%emt 0:00:01] Prevents Nc5.} c5 {[%emt 0:00:02]} (28... Ra6 $142) 29. Nb5 {[%emt 0:00:05] Pair of Knights!} cxb4 {[%emt 0:00:02]} 30. cxb4 {[%emt 0:00:01]} Nd4 {[%emt 0:00:05]} (30... Rf7 $16) 31. Nxd4 $18 {[%emt 0:00:57]} exd4 {Weighted Error Value: White=0.36/Black=0.41} 1-0

[Event "Romanian Team Blitz Open 2022"]
[Site "Sebes"]
[Date "2022.12.04"]
[Round "6.23"]
[White "Danila, Tudor-Gabriel"]
[Black "Denes, Attila-Norbert"]
[Result "1-0"]
[ECO "B06"]
[WhiteElo "1939"]
[BlackElo "1755"]
[Annotator "TA"]
[PlyCount "63"]
[EventDate "2022.12.04"]
[EventType "blitz"]
[EventCountry "ROU"]
[SourceTitle "playchess.com"]
[Source "ChessBase"]
[SourceQuality "1"]
[TimeControl "180+2"]

{[%evp 9,63,62,61,55,96,90,82,79,90,99,95,95,85,76,82,63,102,93,88,70,175,162,174,126,177,93,61,60,171,162,176,116,401,392,379,337,641,627,662,648,1134,1119,1698,1681,1655,1616,2222,2178,29992,29993,29996,29997,29997,29991,29996,29997]} 1. e4 {[%emt 0:00:02]} g6 {[%emt 0:00:02]} 2. d4 {[%emt 0:00:01]} Bg7 {[%emt 0:00:01]} 3. Nc3 {[%emt 0:00:01]} b6 {[%emt 0:00:01]} 4. Be3 {[%emt 0:00:02]} Bb7 {[%emt 0:00:01]} 5. f3 {[%emt 0:00:02]} d6 {[%emt 0:00:03]} 6. Qd2 {[%emt 0:00:03] B06: Modern Defence.} h6 {[%emt 0:00:02]} 7. O-O-O {[%emt 0:00:05] White is more active.} Nd7 {[%emt 0:00:02]} 8. g4 {[%emt 0:00:03] White is better.} e6 {[%emt 0:00:05]} 9. Kb1 {[%emt 0:00:03]} Ne7 {[%emt 0:00:04]} 10. h4 {[%emt 0:00:01]} a6 {[%emt 0:00:26] [#]} 11. Nge2 $146 {[%emt 0:00:18]} ({Predecessor:} 11. h5 g5 12. f4 gxf4 13. Bxf4 b5 14. Bg2 Nb6 15. Nh3 Nc4 16. Qf2 b4 17. Ne2 {0-1 (41) Blokhin,S (2060)-Zia,T (2307) Chess.com INT 2022}) 11... b5 {[%emt 0:00:30]} 12. Ng3 {[%emt 0:00:01]} Nb6 {[%emt 0:00:57]} 13. Bd3 {[%emt 0:00:02]} Qd7 {[%emt 0:00:22]} 14. Rhf1 {[%emt 0:00:32]} b4 {[%emt 0:00:07] Inhibits f4.} (14... O-O-O $14) 15. Nce2 $18 {[%emt 0:00:02]} a5 {[%emt 0:00:01]} 16. Nc1 {[%emt 0:00:01]} (16. f4 $18) 16... Nc6 {[%emt 0:00:18]} (16... Kd8 $16) 17. Nge2 {[%emt 0:00:05]} (17. Bb5 $18) 17... a4 $16 {[%emt 0:00:06] Against d5} 18. f4 {[%emt 0:00:09]} b3 {[%emt 0:00:16]} ({Black should play} 18... d5 $14) 19. cxb3 {[%emt 0:00:11]} axb3 {[%emt 0:00:01]} 20. Nxb3 {[%emt 0:00:02]} Bf8 $2 {[%emt 0:00:02][%mdl 8192] Loses the game.} (20... Ne7 $16 {might work better.}) 21. d5 $18 {[%emt 0:00:23]} exd5 {[%emt 0:00:04]} 22. Bxb6 {[%emt 0:00:08]} cxb6 $2 {[%emt 0:00:08]} (22... dxe4 23. Nc3 cxb6) 23. exd5 {[%emt 0:00:01]} Ne7 {[%emt 0:00:04]} 24. Ned4 {[%emt 0:00:05] [#] Threatens to win with Bb5.} ({Not} 24. Qc3 Rg8 25. Nbd4 Bg7 $16) 24... Bg7 {[%emt 0:00:01]} 25. Bb5 {[%emt 0:00:02]} Kd8 {[%emt 0:00:05]} 26. Bxd7 {[%emt 0:00:02]} Kxd7 {[%emt 0:00:00]} 27. Rfe1 {[%emt 0:00:01]} Rhc8 {[%emt 0:00:02]} 28. Qe2 {[%emt 0:00:02][%csl Ge1][%cal Re2e7] [#]} Re8 {[%emt 0:00:01]} 29. Qb5+ {[%emt 0:00:02] White mates.} Kd8 {[%emt 0:00:02]} 30. Qxb6+ {[%emt 0:01:30]} Kc8 31. Nc6 {[%emt 0:00:00]} Nxd5 {[%emt 0:00:02]} 32. Rxe8+ {[%emt 0:00:00] Weighted Error Value: White=0.10 (very precise) /Black=0.81} 1-0

[Event "Romanian Team Blitz Open 2022"]
[Site "Sebes"]
[Date "2022.12.04"]
[Round "6.24"]
[White "Chereches, Marius-Calin"]
[Black "Mainescu, Andrei-Cristian"]
[Result "0-1"]
[ECO "B77"]
[WhiteElo "1472"]
[BlackElo "1860"]
[Annotator "NA RC COMBH"]
[PlyCount "54"]
[EventDate "2022.12.04"]
[EventType "blitz"]
[EventCountry "ROU"]
[SourceTitle "playchess.com"]
[Source "ChessBase"]
[SourceQuality "1"]
[TimeControl "180+2"]

1. e4 {[%emt 0:00:01]} c5 {[%emt 0:00:01]} 2. Nf3 {[%emt 0:00:01]} d6 {[%emt 0:00:01]} 3. d4 {[%emt 0:00:02]} cxd4 {[%emt 0:00:01]} 4. Nxd4 {[%emt 0:03:06]} Nf6 5. Nc3 {[%emt 0:00:02]} g6 6. f3 {[%emt 0:00:00]} Bg7 {[%emt 0:00:02]} 7. Be3 {[%emt 0:00:00]} Nc6 {[%emt 0:00:00]} 8. Bc4 {[%emt 0:00:00]} O-O {[%emt 0:00:05]} 9. Bb3 {[%emt 0:00:00]} Na5 {[%emt 0:00:52]} 10. Qd2 {[%emt 0:00:00]} Nxb3 {[%emt 0:00:02]} 11. axb3 {[%emt 0:00:00]} Re8 {[%emt 0:00:35]} 12. O-O {[%emt 0:00:00]} a6 {[%emt 0:00:25]} 13. Rfd1 {[%emt 0:00:00]} Bd7 {[%emt 0:00:22]} 14. Bh6 {[%emt 0:00:00]} Bh8 {[%emt 0:00:03]} 15. Be3 {[%emt 0:00:00]} Rc8 {[%emt 0:00:03]} 16. Nde2 {[%emt 0:00:00]} Qc7 {[%emt 0:00:05]} 17. Rdc1 {[%emt 0:00:00]} Bc6 {[%emt 0:00:19]} 18. Na4 {[%emt 0:00:00]} d5 {[%emt 0:00:16]} 19. Bb6 {[%emt 0:00:00]} Qb8 {[%emt 0:00:02]} 20. exd5 {[%emt 0:00:00]} Nxd5 {[%emt 0:00:01]} 21. Bd4 {[%emt 0:00:00]} e5 {[%emt 0:00:01]} 22. Nb6 {[%emt 0:00:11]} Rcd8 {[%emt 0:00:14]} 23. Bc3 {[%emt 0:00:03]} Nxb6 {[%emt 0:00:03]} 24. Qe3 {[%emt 0:00:07]} Nd5 {[%emt 0:00:01]} 25. Qf2 {[%emt 0:00:02]} Nxc3 {[%emt 0:00:01]} 26. Nxc3 {[%emt 0:00:01]} e4 {[%emt 0:00:00]} 27. fxe4 {[%emt 0:00:12]} Bd4 {[%emt 0:00:01]} 0-1

[Event "Romanian Team Blitz Open 2022"]
[Site "Sebes"]
[Date "2022.12.04"]
[Round "6.25"]
[White "Baratosi, Daniel"]
[Black "Ardelean, George-Catalin"]
[Result "0-1"]
[ECO "B22"]
[WhiteElo "2335"]
[BlackElo "2473"]
[Annotator "TA"]
[PlyCount "52"]
[EventDate "2022.12.04"]
[EventType "blitz"]
[EventCountry "ROU"]
[SourceTitle "playchess.com"]
[Source "ChessBase"]
[SourceQuality "1"]
[TimeControl "180+2"]

{[%evp 15,52,-5,21,0,0,-2,-9,0,0,-6,-12,-26,0,-21,-14,-33,-24,-18,-25,-68,-58,-123,-44,-79,-63,-72,-38,-39,-77,-177,-175,-180,-182,-328,-322,-318,-316,-1122,-1104]} 1. e4 {[%emt 0:00:02]} c5 {[%emt 0:00:01]} 2. Nf3 {[%emt 0:00:01]} Nc6 {[%emt 0:00:00]} 3. c3 {[%emt 0:00:01]} Nf6 {[%emt 0:00:03]} 4. e5 {[%emt 0:00:01]} Nd5 {[%emt 0:00:01]} 5. d4 {[%emt 0:00:02]} cxd4 {[%emt 0:00:01]} 6. cxd4 {[%emt 0:00:01]} d6 {[%emt 0:00:01]} 7. Bc4 {[%emt 0:00:03]} Nb6 {[%emt 0:00:01]} 8. Bb5 {[%emt 0:00:02]} Bd7 {[%emt 0:00:01]} 9. exd6 {[%emt 0:00:12] B22: Sicilian: 2 c3.} (9. Nc3 {simplifies} dxe5 10. dxe5 g6 11. Qe2) 9... e6 {[%emt 0:00:01]} 10. O-O {[%emt 0:00:03][%cal Od4d5]} Bxd6 {[%emt 0:00:05]} 11. Nc3 {[%emt 0:00:03] The position is equal.} Nb4 {[%emt 0:00:05] Prevents d5. was the old line (11...0-0).} 12. Bxd7+ {[%emt 0:00:18]} Qxd7 {[%emt 0:00:05] [#]} 13. Qb3 $146 {[%emt 0:00:17]} ({Predecessor:} 13. Ne5 Bxe5 14. dxe5 Qxd1 15. Rxd1 O-O 16. Ne4 Rac8 17. Nd6 Rc2 18. Nxb7 Nc4 19. b3 Nxe5 {1-0 (73) Ju,W (2568)-Ushenina,A (2494) Beijing 2014}) 13... N4d5 {[%emt 0:00:31]} 14. Ne4 {[%emt 0:00:06]} O-O {[%emt 0:00:05]} 15. a4 {[%emt 0:00:05]} Rac8 {[%emt 0:00:06]} 16. a5 {[%emt 0:00:45]} Nc4 {[%emt 0:00:07]} 17. Bg5 {[%emt 0:00:24]} h6 {[%emt 0:00:07]} 18. Bh4 {[%emt 0:00:16]} (18. Rfc1 $15) 18... Rc6 {[%emt 0:00:12]} ({Better is} 18... Bb4 $17 19. a6 bxa6 20. Rxa6 f5) 19. Ra4 {[%emt 0:00:07]} Rfc8 {[%emt 0:00:02]} 20. Bg3 {[%emt 0:00:06] [#] And now Nxd6 would win.} Bxg3 {[%emt 0:00:27]} 21. hxg3 {[%emt 0:00:04] Nc5 is the strong threat.} Qc7 {[%emt 0:00:01]} 22. Nc5 {[%emt 0:00:19]} (22. Rfa1 $17) 22... Nxa5 $19 {[%emt 0:00:07]} 23. Qb5 {[%emt 0:00:07]} b6 {[%emt 0:00:06]} 24. Ne5 {[%emt 0:00:12]} (24. Rd1 {was called for.}) 24... Rxc5 {[%emt 0:00:19]} 25. dxc5 {[%emt 0:00:07]} Qxe5 {[%emt 0:00:01]} 26. b4 $2 {[%emt 0:00:03] [#]} (26. Raa1) 26... Nc3 {[%emt 0:00:17][%csl LRa4,LRb5,LRc5] Weighted Error Value: White=0.62/Black=0.16 (very precise)} 0-1